[Event "EWIRCC 2019"]
[Site "Monte-Carlo"]
[Date "2019.11.30"]
[Round "5.17"]
[White "Semenova, Elena"]
[Black "Michna, Marta"]
[Result "0-1"]
[ECO "C02"]
[WhiteElo "2282"]
[BlackElo "2366"]
[Annotator "NA"]
[PlyCount "112"]
[EventDate "2019.11.28"]
[EventType "swiss"]
[EventCountry "MNC"]
[SourceTitle "playchess.com"]
[Source "ChessBase"]
[SourceQuality "1"]
[TimeControl "5400+30"]

1. e4 {[%emt 1:15:11]} e6 {[%emt 1:15:11]} 2. d4 {[%emt 0:00:22]} d5 {[%emt 0:00:21]} 3. e5 {[%emt 0:00:32]} b6 {[%emt 0:00:30]} 4. c3 {[%emt 0:00:30]} Qd7 {[%emt 0:00:21]} 5. Bd3 {[%emt 0:00:44]} c5 {[%emt 0:00:56]} 6. Nf3 {[%emt 0:00:48]} Ba6 {[%emt 0:00:31]} 7. O-O {[%emt 0:00:25]} Bxd3 {[%emt 0:01:02]} 8. Qxd3 {[%emt 0:00:21]} Nc6 {[%emt 0:00:56]} 9. Nbd2 {[%emt 0:00:36]} c4 {[%emt 0:03:48]} 10. Qe2 {[%emt 0:00:41]} b5 {[%emt 0:00:31]} 11. b3 {[%emt 0:00:47]} Rb8 {[%emt 0:02:41]} 12. a4 {[%emt 0:00:49]} a6 {[%emt 0:00:23]} 13. Rd1 {[%emt 0:01:43]} Nh6 {[%emt 0:02:26]} 14. Nf1 {[%emt 0:01:22]} Nf5 {[%emt 0:00:56]} 15. g4 {[%emt 0:02:15]} Nfe7 {[%emt 0:00:21]} 16. axb5 {[%emt 0:01:04]} axb5 {[%emt 0:00:21]} 17. Ng3 {[%emt 0:01:42]} g6 {[%emt 0:01:48]} 18. Bg5 {[%emt 0:01:50]} Ng8 {[%emt 0:00:47]} 19. b4 {[%emt 0:00:36]} Be7 {[%emt 0:01:40]} 20. Bf4 {[%emt 0:00:57]} h6 {[%emt 0:00:34]} 21. Ra6 {[%emt 0:00:44]} Kf8 {[%emt 0:01:32]} 22. Rda1 {[%emt 0:00:36]} Qb7 {[%emt 0:00:59]} 23. Qa2 {[%emt 0:00:33]} Kg7 {[%emt 0:00:44]} 24. Ra8 {[%emt 0:02:52]} Bxb4 {[%emt 0:01:32]} 25. Rxb8 {[%emt 0:00:39]} Qxb8 {[%emt 0:00:22]} 26. cxb4 {[%emt 0:01:01]} Nxb4 {[%emt 0:00:20]} 27. Qd2 {[%emt 0:00:57]} Nc6 {[%emt 0:00:38]} 28. Qc2 {[%emt 0:00:52]} Nge7 {[%emt 0:00:34]} 29. Nf1 {[%emt 0:00:49]} b4 {[%emt 0:00:41]} 30. N1d2 {[%emt 0:00:21]} Qb5 {[%emt 0:00:26]} 31. Qa4 {[%emt 0:01:03]} Qxa4 32. Rxa4 {[%emt 0:00:21]} Rb8 {[%emt 0:00:52]} 33. Kf1 {[%emt 0:00:32]} Rb5 {[%emt 0:00:49]} 34. Ke2 {[%emt 0:00:28]} Nc8 {[%emt 0:00:31]} 35. Nb1 {[%emt 0:00:49]} N8a7 {[%emt 0:00:31]} 36. h4 {[%emt 0:00:44]} Rb7 {[%emt 0:00:26]} 37. Kd2 {[%emt 0:00:28]} Nb5 {[%emt 0:00:32]} 38. Be3 {[%emt 0:00:30]} c3+ {[%emt 0:00:43]} 39. Kc1 {[%emt 0:01:27]} b3 {[%emt 0:00:25]} 40. Ne1 {[%emt 0:00:31]} c2 {[%emt 0:00:56]} 41. Nxc2 {[%emt 0:00:38]} bxc2 42. Kxc2 {[%emt 0:00:21]} Nc7 {[%emt 0:00:49]} 43. Nc3 {[%emt 0:00:30]} Nb5 {[%emt 0:01:04]} 44. Ne2 {[%emt 0:00:34]} Nc7 {[%emt 0:00:30]} 45. Nc3 {[%emt 0:00:55]} Nb4+ {[%emt 0:00:06]} 46. Kd2 {[%emt 0:00:00]} Nc6 {[%emt 0:00:22]} 47. Kc2 {[%emt 0:00:13]} Rb4 {[%emt 0:00:22]} 48. Rxb4 {[%emt 0:00:31]} Nxb4+ {[%emt 0:00:21]} 49. Kb3 {[%emt 0:00:25]} Nd3 {[%emt 0:01:19]} 50. Ne2 {[%emt 0:01:21]} Ne1 {[%emt 0:00:00]} 51. Nf4 {[%emt 0:00:00]} Nf3 {[%emt 0:00:05]} 52. Ng2 {[%emt 0:00:13]} Nb5 {[%emt 0:00:23]} 53. Kb4 {[%emt 0:00:23]} Nbxd4 {[%emt 0:00:22]} 54. Kc3 {[%emt 0:01:24]} Nc6 55. Kd3 {[%emt 0:00:00]} Nfxe5+ {[%emt 0:00:45]} 56. Ke2 {[%emt 0:00:01]} Nxg4 {[%emt 0:00:22]} 0-1

[Event "EWIRCC 2019"]
[Site "Monte-Carlo"]
[Date "2019.11.30"]
[Round "5.18"]
[White "Johansson, Viktoria"]
[Black "Benmesbah, Natacha"]
[Result "1-0"]
[ECO "E76"]
[WhiteElo "2120"]
[BlackElo "2265"]
[Annotator "NA"]
[PlyCount "93"]
[EventDate "2019.11.28"]
[EventType "swiss"]
[EventCountry "MNC"]
[SourceTitle "playchess.com"]
[Source "ChessBase"]
[SourceQuality "1"]
[TimeControl "5400+30"]

1. d4 {[%emt 1:15:11]} Nf6 {[%emt 1:15:10]} 2. c4 {[%emt 0:00:22]} c5 {[%emt 0:00:21]} 3. d5 {[%emt 0:00:23]} g6 {[%emt 0:00:31]} 4. Nc3 {[%emt 0:00:24]} Bg7 {[%emt 0:00:22]} 5. e4 {[%emt 0:00:34]} d6 {[%emt 0:00:21]} 6. f4 {[%emt 0:00:35]} O-O {[%emt 0:02:50]} 7. Nf3 {[%emt 0:01:00]} e5 {[%emt 0:00:31]} 8. fxe5 {[%emt 0:01:58]} Ng4 {[%emt 0:00:21]} 9. Bg5 {[%emt 0:01:22]} Qb6 {[%emt 0:14:03]} 10. Qd2 {[%emt 0:00:51]} Nxe5 {[%emt 0:00:00]} 11. Be2 {[%emt 0:01:48]} Nbd7 {[%emt 0:00:00]} 12. O-O {[%emt 0:00:33]} f6 {[%emt 0:00:00]} 13. Be3 {[%emt 0:00:43]} a6 {[%emt 0:00:00]} 14. Kh1 {[%emt 0:00:26]} Qd8 {[%emt 0:00:00]} 15. a3 {[%emt 0:01:06]} Nxf3 {[%emt 0:00:00]} 16. gxf3 {[%emt 0:00:28]} f5 {[%emt 0:00:00]} 17. Bg5 {[%emt 0:01:01]} Qe8 {[%emt 0:00:00]} 18. exf5 {[%emt 0:01:00]} Rxf5 {[%emt 0:00:00]} 19. Bd3 {[%emt 0:00:22]} Bxc3 {[%emt 0:00:00]} 20. bxc3 {[%emt 0:00:26]} Ne5 {[%emt 0:00:00]} 21. Bxf5 {[%emt 0:00:36]} Bxf5 {[%emt 0:00:00]} 22. Rae1 {[%emt 0:00:42]} Qa4 {[%emt 0:00:00]} 23. f4 {[%emt 0:00:46]} Nf7 {[%emt 0:00:00]} 24. Re7 {[%emt 0:01:14]} Qxc4 {[%emt 0:00:00]} 25. Rfe1 {[%emt 0:00:27]} Kg7 {[%emt 0:00:01]} 26. Qe3 {[%emt 0:01:19]} Qxd5+ {[%emt 0:00:26]} 27. Kg1 {[%emt 0:00:26]} h6 {[%emt 0:01:05]} 28. Bh4 {[%emt 0:00:57]} b5 {[%emt 0:00:23]} 29. Re2 {[%emt 0:01:30]} Rf8 {[%emt 0:02:46]} 30. Rd2 {[%emt 0:00:24]} Qc6 {[%emt 0:00:23]} 31. c4 {[%emt 0:00:44]} bxc4 {[%emt 0:00:42]} 32. Qc3+ {[%emt 0:01:33]} Kg8 {[%emt 0:00:21]} 33. Bf6 {[%emt 0:00:34]} d5 {[%emt 0:00:37]} 34. Bh8 {[%emt 0:00:57]} d4 {[%emt 0:01:05]} 35. Rxd4 {[%emt 0:00:22]} cxd4 {[%emt 0:03:58]} 36. Qxd4 {[%emt 0:00:27]} Qb6 {[%emt 0:00:27]} 37. Qxb6 {[%emt 0:00:27]} Kxh8 {[%emt 0:00:21]} 38. Qxa6 {[%emt 0:00:49]} Bd3 {[%emt 0:00:27]} 39. Qf6+ {[%emt 0:00:34]} Kg8 {[%emt 0:00:21]} 40. a4 {[%emt 0:00:23]} Bf5 {[%emt 0:01:06]} 41. a5 {[%emt 0:00:26]} c3 {[%emt 0:00:22]} 42. Qxc3 {[%emt 0:00:22]} Rd8 {[%emt 0:00:25]} 43. a6 {[%emt 0:00:37]} Rd1+ {[%emt 0:00:25]} 44. Kf2 {[%emt 0:00:23]} Kf8 {[%emt 0:00:25]} 45. Rc7 {[%emt 0:00:36]} Nd6 {[%emt 0:00:43]} 46. Qg7+ {[%emt 0:00:27]} Ke8 {[%emt 0:00:22]} 47. Qe7# {[%emt 0:00:21]} 1-0

[Event "EWIRCC 2019"]
[Site "Monte-Carlo"]
[Date "2019.11.30"]
[Round "5.19"]
[White "Babiy, Olga"]
[Black "Unuk, Laura"]
[Result "0-1"]
[ECO "C78"]
[WhiteElo "2249"]
[BlackElo "2298"]
[Annotator "NA"]
[PlyCount "106"]
[EventDate "2019.11.28"]
[EventType "swiss"]
[EventCountry "MNC"]
[SourceTitle "playchess.com"]
[Source "ChessBase"]
[SourceQuality "1"]
[TimeControl "5400+30"]

1. e4 {[%emt 1:15:10]} e5 {[%emt 1:15:14]} 2. Nf3 {[%emt 0:00:24]} Nc6 {[%emt 0:00:21]} 3. Bb5 {[%emt 0:00:25]} a6 {[%emt 0:00:22]} 4. Ba4 {[%emt 0:00:21]} Nf6 {[%emt 0:00:22]} 5. O-O {[%emt 0:00:22]} b5 {[%emt 0:00:22]} 6. Bb3 {[%emt 0:00:21]} Bc5 {[%emt 0:00:22]} 7. Re1 {[%emt 0:01:23]} d6 {[%emt 0:00:34]} 8. c3 {[%emt 0:00:22]} h6 {[%emt 0:01:12]} 9. d4 {[%emt 0:00:33]} Bb6 {[%emt 0:00:21]} 10. h3 {[%emt 0:00:25]} O-O {[%emt 0:00:23]} 11. Be3 {[%emt 0:00:28]} Re8 {[%emt 0:01:05]} 12. dxe5 {[%emt 0:01:17]} dxe5 {[%emt 0:01:26]} 13. Bxb6 {[%emt 0:01:25]} cxb6 {[%emt 0:00:23]} 14. Nbd2 {[%emt 0:00:59]} Na5 {[%emt 0:00:38]} 15. Bc2 {[%emt 0:00:25]} Bb7 {[%emt 0:00:30]} 16. Qe2 {[%emt 0:00:56]} Qc7 {[%emt 0:00:32]} 17. Rac1 {[%emt 0:01:14]} Rad8 {[%emt 0:00:26]} 18. Nf1 {[%emt 0:00:24]} Nh5 {[%emt 0:01:19]} 19. g3 {[%emt 0:01:35]} Nf6 {[%emt 0:01:27]} 20. Nh4 {[%emt 0:01:27]} Nc4 {[%emt 0:00:36]} 21. Bb1 {[%emt 0:02:31]} Rd7 {[%emt 0:00:48]} 22. Nf5 {[%emt 0:00:50]} Red8 {[%emt 0:00:59]} 23. Qf3 {[%emt 0:00:26]} Qc6 {[%emt 0:00:39]} 24. b3 {[%emt 0:01:28]} Na3 {[%emt 0:00:59]} 25. Red1 {[%emt 0:02:31]} Kf8 {[%emt 0:01:08]} 26. Bd3 {[%emt 0:00:26]} Nxe4 {[%emt 0:00:37]} 27. Qg4 {[%emt 0:01:04]} g6 {[%emt 0:01:25]} 28. Bxe4 {[%emt 0:01:21]} Qxe4 {[%emt 0:00:40]} 29. Qxe4 {[%emt 0:00:21]} Bxe4 {[%emt 0:00:23]} 30. Rxd7 {[%emt 0:00:25]} Rxd7 {[%emt 0:00:22]} 31. Nxh6 {[%emt 0:00:55]} f5 {[%emt 0:00:38]} 32. g4 {[%emt 0:00:21]} Kg7 {[%emt 0:00:35]} 33. g5 {[%emt 0:00:21]} a5 {[%emt 0:01:11]} 34. h4 {[%emt 0:00:35]} Bc2 {[%emt 0:01:14]} 35. Ne3 {[%emt 0:00:25]} Bb1 {[%emt 0:00:22]} 36. Kf1 {[%emt 0:01:50]} Rd2 {[%emt 0:02:54]} 37. Ke1 {[%emt 0:01:07]} Rxa2 {[%emt 0:00:29]} 38. Rd1 {[%emt 0:00:21]} Nc2+ {[%emt 0:01:42]} 39. Nxc2 {[%emt 0:00:22]} Bxc2 {[%emt 0:00:21]} 40. Rd7+ {[%emt 0:00:21]} Kf8 {[%emt 0:00:23]} 41. h5 {[%emt 0:00:54]} Ra1+ {[%emt 0:00:22]} 42. Ke2 {[%emt 0:00:27]} f4 {[%emt 0:01:06]} 43. hxg6 {[%emt 0:00:36]} Bxg6 {[%emt 0:00:24]} 44. Rb7 {[%emt 0:00:51]} a4 {[%emt 0:00:52]} 45. bxa4 {[%emt 0:00:21]} bxa4 {[%emt 0:00:22]} 46. Rxb6 {[%emt 0:00:21]} Bh5+ {[%emt 0:01:12]} 47. Kd3 {[%emt 0:00:32]} a3 {[%emt 0:00:21]} 48. Rf6+ {[%emt 0:01:38]} Ke8 {[%emt 0:01:12]} 49. Kc2 {[%emt 0:00:21]} Bd1+ {[%emt 0:00:59]} 50. Kd2 {[%emt 0:00:28]} a2 {[%emt 0:00:22]} 51. Re6+ {[%emt 0:00:52]} Kd7 {[%emt 0:00:23]} 52. Ra6 {[%emt 0:00:21]} Bb3 {[%emt 0:00:23]} 53. Ra7+ {[%emt 0:00:29]} Kc6 {[%emt 0:00:29]} 0-1

[Event "EWIRCC 2019"]
[Site "Monte-Carlo"]
[Date "2019.12.01"]
[Round "6.3"]
[White "Zhukova, Natalia"]
[Black "Muzychuk, Mariya"]
[Result "1/2-1/2"]
[ECO "D51"]
[WhiteElo "2323"]
[BlackElo "2552"]
[Annotator "ChessBase"]
[PlyCount "86"]
[EventDate "2019.11.28"]
[EventType "swiss"]
[EventCountry "MNC"]
[SourceTitle "playchess.com"]
[Source "ChessBase"]
[SourceQuality "1"]
[TimeControl "5400+30"]

1. c4 {[%emt 1:15:12]} c6 {[%emt 1:15:11]} 2. d4 {[%emt 0:00:30]} d5 {[%emt 0:00:20]} 3. Nf3 {[%emt 0:00:22]} Nf6 {[%emt 0:00:22]} 4. Nc3 {[%emt 0:00:23]} e6 {[%emt 0:00:21]} 5. Bg5 {[%emt 0:00:23]} h6 {[%emt 0:00:26]} 6. Bh4 {[%emt 0:00:22]} Nbd7 {[%emt 0:01:36]} 7. e3 {[%emt 0:00:22]} Qa5 {[%emt 0:00:27]} 8. Nd2 {[%emt 0:00:45]} Bd6 {[%emt 0:00:54]} 9. Be2 {[%emt 0:00:52]} O-O {[%emt 0:00:31]} 10. O-O {[%emt 0:00:27]} a6 {[%emt 0:02:08]} 11. c5 {[%emt 0:02:34]} Bb8 {[%emt 0:00:45]} 12. f4 {[%emt 0:00:23]} b5 {[%emt 0:00:27]} 13. a3 {[%emt 0:03:17]} Qc7 {[%emt 0:00:58]} 14. b4 {[%emt 0:01:07]} a5 {[%emt 0:00:28]} 15. Nb3 {[%emt 0:00:39]} a4 {[%emt 0:04:44]} 16. Nd2 {[%emt 0:00:37]} Nh7 {[%emt 0:00:21]} 17. Nf3 {[%emt 0:02:54]} f5 {[%emt 0:01:45]} 18. Be7 {[%emt 0:02:55]} Rf7 {[%emt 0:00:56]} 19. Bd6 {[%emt 0:00:21]} Qd8 {[%emt 0:00:21]} 20. Ne5 {[%emt 0:00:56]} Nxe5 {[%emt 0:00:22]} 21. dxe5 {[%emt 0:00:37]} g6 {[%emt 0:00:54]} 22. Bf3 {[%emt 0:00:27]} Bc7 {[%emt 0:01:19]} 23. Ne2 {[%emt 0:00:24]} Qe8 {[%emt 0:00:24]} 24. Nd4 {[%emt 0:00:22]} Bd8 {[%emt 0:00:24]} 25. g3 {[%emt 0:00:50]} Bd7 {[%emt 0:00:37]} 26. Kf2 {[%emt 0:00:45]} Rg7 {[%emt 0:01:06]} 27. h4 {[%emt 0:00:42]} h5 {[%emt 0:01:04]} 28. Ke1 {[%emt 0:00:23]} Qf7 {[%emt 0:00:34]} 29. Rc1 {[%emt 0:00:23]} Rc8 {[%emt 0:00:25]} 30. Rc3 {[%emt 0:00:29]} Qe8 {[%emt 0:00:42]} 31. Qe2 {[%emt 0:00:24]} Qf7 {[%emt 0:00:26]} 32. Kd2 {[%emt 0:00:20]} Qe8 {[%emt 0:00:30]} 33. Rfc1 {[%emt 0:00:21]} Kh8 {[%emt 0:00:30]} 34. Qf1 {[%emt 0:00:23]} Qf7 {[%emt 0:00:42]} 35. Be2 {[%emt 0:00:22]} Be8 {[%emt 0:00:22]} 36. Ke1 {[%emt 0:00:54]} Kg8 {[%emt 0:00:25]} 37. Kf2 {[%emt 0:00:21]} Kh8 {[%emt 0:00:21]} 38. Kg2 {[%emt 0:00:32]} Kg8 {[%emt 0:00:21]} 39. Kh3 {[%emt 0:00:21]} Kh8 {[%emt 0:00:22]} 40. Kh2 {[%emt 0:02:12]} Kg8 {[%emt 0:00:28]} 41. Kg2 {[%emt 0:00:21]} Kh8 {[%emt 0:00:21]} 42. Kh3 {[%emt 0:00:21]} Kg8 {[%emt 0:00:20]} 43. Bd3 {[%emt 0:01:10]} Kh8 {[%emt 0:00:25]} 1/2-1/2

[Event "EWIRCC 2019"]
[Site "Monte-Carlo"]
[Date "2019.12.01"]
[Round "6.5"]
[White "Sebag, Marie"]
[Black "Girya, Olga"]
[Result "0-1"]
[ECO "B12"]
[WhiteElo "2443"]
[BlackElo "2476"]
[Annotator "ChessBase"]
[PlyCount "184"]
[EventDate "2019.11.28"]
[EventType "swiss"]
[EventCountry "MNC"]
[SourceTitle "playchess.com"]
[Source "ChessBase"]
[SourceQuality "1"]
[TimeControl "5400+30"]

1. e4 {[%emt 1:15:13]} c6 {[%emt 1:15:11]} 2. d4 {[%emt 0:00:22]} d5 {[%emt 0:00:21]} 3. e5 {[%emt 0:00:22]} Bf5 {[%emt 0:00:21]} 4. Nf3 {[%emt 0:00:22]} e6 {[%emt 0:00:21]} 5. Be2 {[%emt 0:00:26]} Ne7 {[%emt 0:00:21]} 6. O-O {[%emt 0:00:32]} Bg6 {[%emt 0:00:22]} 7. Nbd2 {[%emt 0:02:57]} c5 {[%emt 0:00:22]} 8. c4 {[%emt 0:01:12]} cxd4 {[%emt 0:00:28]} 9. Nxd4 {[%emt 0:00:40]} Nec6 {[%emt 0:00:21]} 10. N2f3 {[%emt 0:00:51]} dxc4 {[%emt 0:01:07]} 11. Bxc4 {[%emt 0:00:45]} Be7 {[%emt 0:00:27]} 12. Be3 {[%emt 0:01:55]} O-O {[%emt 0:00:23]} 13. Be2 {[%emt 0:00:56]} Nb4 {[%emt 0:05:21]} 14. Qb3 {[%emt 0:00:41]} N8c6 {[%emt 0:00:26]} 15. Rfd1 {[%emt 0:01:35]} Qb8 {[%emt 0:07:24]} 16. Nxc6 {[%emt 0:03:25]} bxc6 {[%emt 0:00:21]} 17. Rac1 {[%emt 0:01:18]} Nc2 {[%emt 0:00:59]} 18. Rd7 {[%emt 0:02:03]} Qxb3 {[%emt 0:00:30]} 19. axb3 {[%emt 0:00:22]} Nxe3 {[%emt 0:01:10]} 20. fxe3 {[%emt 0:00:44]} Bd8 {[%emt 0:00:27]} 21. Rxc6 {[%emt 0:01:23]} Bb6 {[%emt 0:00:21]} 22. Kf2 {[%emt 0:00:22]} Rac8 {[%emt 0:02:06]} 23. Rxc8 {[%emt 0:00:39]} Rxc8 {[%emt 0:00:20]} 24. Bc4 {[%emt 0:00:22]} Kf8 {[%emt 0:00:43]} 25. Nd4 {[%emt 0:00:57]} Rc5 {[%emt 0:00:32]} 26. Rb7 {[%emt 0:01:00]} Be4 {[%emt 0:01:24]} 27. Rb8+ {[%emt 0:00:31]} Ke7 {[%emt 0:00:21]} 28. Bb5 {[%emt 0:00:26]} Rxe5 {[%emt 0:00:26]} 29. Nc6+ {[%emt 0:01:41]} Bxc6 {[%emt 0:00:21]} 30. Bxc6 {[%emt 0:00:21]} Bxe3+ {[%emt 0:00:31]} 31. Kf3 {[%emt 0:00:21]} Bb6 {[%emt 0:00:30]} 32. Rb7+ {[%emt 0:00:24]} Kd6 {[%emt 0:00:38]} 33. Be8 {[%emt 0:00:43]} Re3+ {[%emt 0:00:37]} 34. Kf4 {[%emt 0:00:32]} Rxb3 {[%emt 0:01:05]} 35. Rd7+ {[%emt 0:00:31]} Kc5 {[%emt 0:00:21]} 36. Rxf7 {[%emt 0:00:21]} Rxb2 {[%emt 0:00:41]} 37. Rxg7 {[%emt 0:00:22]} h6 {[%emt 0:00:23]} 38. Rg6 {[%emt 0:00:29]} Bd8 {[%emt 0:00:39]} 39. Rxh6 {[%emt 0:00:42]} Rxg2 {[%emt 0:00:22]} 40. Rxe6 {[%emt 0:00:26]} Rxh2 {[%emt 0:00:28]} 41. Rc6+ {[%emt 0:00:31]} Kb4 {[%emt 0:00:26]} 42. Ra6 {[%emt 0:00:32]} Bb6 {[%emt 0:00:23]} 43. Ra4+ {[%emt 0:00:25]} Kc5 {[%emt 0:00:21]} 44. Re4 {[%emt 0:00:26]} Kd6 {[%emt 0:00:27]} 45. Ba4 {[%emt 0:00:26]} Rf2+ {[%emt 0:00:24]} 46. Kg3 {[%emt 0:00:29]} Rf5 {[%emt 0:00:23]} 47. Kg4 {[%emt 0:00:26]} Rf2 {[%emt 0:00:22]} 48. Kg3 {[%emt 0:00:22]} Rf8 {[%emt 0:00:22]} 49. Kg4 {[%emt 0:00:26]} Kd5 {[%emt 0:00:22]} 50. Rf4 {[%emt 0:00:31]} Rg8+ {[%emt 0:00:24]} 51. Kf3 {[%emt 0:00:21]} Rg1 {[%emt 0:00:22]} 52. Ke2 {[%emt 0:00:34]} Bd4 {[%emt 0:00:27]} 53. Kd3 {[%emt 0:00:43]} Rg3+ {[%emt 0:00:25]} 54. Kc2 {[%emt 0:00:26]} Rc3+ {[%emt 0:00:25]} 55. Kb1 {[%emt 0:00:39]} Ra3 {[%emt 0:00:21]} 56. Be8 {[%emt 0:00:23]} a5 {[%emt 0:00:51]} 57. Rf5+ {[%emt 0:00:49]} Ke4 {[%emt 0:01:03]} 58. Rb5 {[%emt 0:00:49]} Kd3 {[%emt 0:00:27]} 59. Bg6+ {[%emt 0:00:28]} Kd2 {[%emt 0:00:23]} 60. Rb2+ {[%emt 0:00:45]} Bxb2 {[%emt 0:00:27]} 61. Kxb2 {[%emt 0:00:21]} Rc3 {[%emt 0:00:35]} 62. Be8 {[%emt 0:00:22]} Rc8 {[%emt 0:00:56]} 63. Ba4 {[%emt 0:00:24]} Rb8+ {[%emt 0:00:25]} 64. Ka3 {[%emt 0:00:21]} Kc3 {[%emt 0:00:26]} 65. Bd7 {[%emt 0:00:22]} Rb7 {[%emt 0:00:27]} 66. Bc6 {[%emt 0:00:21]} Rb1 {[%emt 0:00:27]} 67. Ka2 {[%emt 0:00:24]} Rb2+ {[%emt 0:00:27]} 68. Ka3 {[%emt 0:00:21]} Rd2 {[%emt 0:00:56]} 69. Bb5 {[%emt 0:00:25]} Rd4 {[%emt 0:00:32]} 70. Be8 {[%emt 0:00:22]} Rd1 {[%emt 0:00:37]} 71. Ka2 {[%emt 0:00:21]} Kb4 {[%emt 0:00:22]} 72. Bf7 {[%emt 0:00:43]} Kc3 {[%emt 0:00:30]} 73. Be8 {[%emt 0:00:26]} Rf1 {[%emt 0:00:32]} 74. Bd7 {[%emt 0:00:25]} Kb4 {[%emt 0:00:34]} 75. Be6 {[%emt 0:00:31]} Rf2+ {[%emt 0:00:23]} 76. Ka1 {[%emt 0:00:24]} Ka3 {[%emt 0:00:23]} 77. Kb1 {[%emt 0:00:31]} Rf1+ {[%emt 0:00:22]} 78. Kc2 {[%emt 0:00:21]} Rf6 {[%emt 0:00:24]} 79. Bd5 {[%emt 0:00:31]} Rd6 {[%emt 0:00:24]} 80. Bg8 {[%emt 0:00:26]} Rb6 {[%emt 0:00:21]} 81. Bf7 {[%emt 0:00:36]} Rb2+ {[%emt 0:00:29]} 82. Kc1 {[%emt 0:00:45]} Rb7 {[%emt 0:00:26]} 83. Bg8 {[%emt 0:00:27]} Ka4 {[%emt 0:01:04]} 84. Kc2 {[%emt 0:00:38]} Rb4 {[%emt 0:00:21]} 85. Bf7 {[%emt 0:00:33]} Kb5 {[%emt 0:00:21]} 86. Be8+ {[%emt 0:01:34]} Kc5 {[%emt 0:00:22]} 87. Bf7 {[%emt 0:00:26]} a4 {[%emt 0:00:23]} 88. Kc3 {[%emt 0:00:29]} a3 {[%emt 0:00:35]} 89. Bb3 {[%emt 0:00:21]} Rb6 {[%emt 0:00:35]} 90. Kc2 {[%emt 0:00:41]} Kd4 {[%emt 0:00:24]} 91. Bg8 {[%emt 0:00:29]} Rb2+ {[%emt 0:00:22]} 92. Kc1 {[%emt 0:00:20]} Ke5 {[%emt 0:01:58]} 0-1

[Event "EWIRCC 2019"]
[Site "Monte-Carlo"]
[Date "2019.12.01"]
[Round "6.7"]
[White "Berend, Elvira"]
[Black "Batsiashvili, Nino"]
[Result "0-1"]
[ECO "E18"]
[WhiteElo "2349"]
[BlackElo "2422"]
[Annotator "NA"]
[PlyCount "122"]
[EventDate "2019.11.28"]
[EventType "swiss"]
[EventCountry "MNC"]
[SourceTitle "playchess.com"]
[Source "ChessBase"]
[SourceQuality "1"]
[TimeControl "5400+30"]

1. d4 {[%emt 1:15:12]} Nf6 {[%emt 1:15:11]} 2. c4 {[%emt 0:00:22]} e6 {[%emt 0:00:21]} 3. Nf3 {[%emt 0:00:23]} b6 {[%emt 0:00:21]} 4. g3 {[%emt 0:00:26]} Bb7 {[%emt 0:00:23]} 5. Bg2 {[%emt 0:00:21]} Be7 {[%emt 0:00:22]} 6. O-O {[%emt 0:00:23]} O-O {[%emt 0:00:22]} 7. Nc3 {[%emt 0:00:22]} Ne4 {[%emt 0:00:23]} 8. Bd2 {[%emt 0:00:24]} d6 {[%emt 0:00:29]} 9. d5 {[%emt 0:02:22]} Nxd2 {[%emt 0:00:35]} 10. Qxd2 {[%emt 0:00:33]} e5 {[%emt 0:00:21]} 11. e4 {[%emt 0:00:27]} Nd7 {[%emt 0:00:23]} 12. Ne1 {[%emt 0:00:37]} Bg5 {[%emt 0:00:40]} 13. Qe2 {[%emt 0:00:24]} g6 {[%emt 0:00:34]} 14. Nd3 {[%emt 0:00:24]} Bh6 {[%emt 0:00:57]} 15. b4 {[%emt 0:00:33]} a5 {[%emt 0:00:22]} 16. a3 {[%emt 0:00:24]} Ba6 {[%emt 0:00:22]} 17. Nb5 {[%emt 0:00:31]} f5 {[%emt 0:00:52]} 18. exf5 {[%emt 0:03:47]} gxf5 {[%emt 0:00:46]} 19. f4 {[%emt 0:01:08]} e4 {[%emt 0:01:08]} 20. Nf2 {[%emt 0:00:25]} Bg7 {[%emt 0:00:21]} 21. Rac1 {[%emt 0:00:38]} axb4 {[%emt 0:02:17]} 22. axb4 {[%emt 0:00:21]} Rf7 {[%emt 0:01:48]} 23. g4 {[%emt 0:00:58]} fxg4 {[%emt 0:01:30]} 24. Nxg4 {[%emt 0:01:20]} Nf6 {[%emt 0:00:42]} 25. Nxf6+ {[%emt 0:00:33]} Qxf6 {[%emt 0:00:21]} 26. Bh3 {[%emt 0:01:05]} Bc8 {[%emt 0:00:53]} 27. Bxc8 {[%emt 0:00:38]} Rxc8 {[%emt 0:00:21]} 28. Qxe4 {[%emt 0:08:59]} Re7 {[%emt 0:00:41]} 29. Qg2 {[%emt 0:00:00]} Rce8 {[%emt 0:00:36]} 30. Rc2 {[%emt 0:00:00]} Kh8 {[%emt 0:00:33]} 31. Kh1 {[%emt 0:00:00]} Qf5 {[%emt 0:00:51]} 32. Rd2 {[%emt 0:00:00]} Rg8 {[%emt 0:03:28]} 33. Qf3 {[%emt 0:00:00]} Bf6 {[%emt 0:01:04]} 34. Rg2 {[%emt 0:00:00]} Rxg2 {[%emt 0:00:39]} 35. Qxg2 {[%emt 0:00:00]} Qd3 {[%emt 0:00:30]} 36. Na7 {[%emt 0:00:00]} Qxc4 {[%emt 0:00:53]} 37. Nc6 {[%emt 0:00:00]} Re2 {[%emt 0:00:57]} 38. Qf3 {[%emt 0:00:00]} Qc2 {[%emt 0:00:50]} 39. Qh3 {[%emt 0:00:22]} Qe4+ {[%emt 0:00:22]} 40. Qf3 {[%emt 0:00:21]} Qxf3+ {[%emt 0:00:31]} 41. Rxf3 {[%emt 0:00:21]} Rd2 {[%emt 0:00:21]} 42. Ra3 {[%emt 0:00:31]} Rxd5 {[%emt 0:00:28]} 43. Ra7 {[%emt 0:00:30]} Rf5 {[%emt 0:02:00]} 44. Rxc7 {[%emt 0:00:22]} Rxf4 {[%emt 0:00:21]} 45. Rb7 {[%emt 0:00:34]} d5 {[%emt 0:00:25]} 46. Rxb6 {[%emt 0:00:28]} d4 {[%emt 0:00:21]} 47. Rb7 {[%emt 0:00:24]} d3 {[%emt 0:00:37]} 48. Rd7 {[%emt 0:00:21]} Rc4 {[%emt 0:00:22]} 49. b5 {[%emt 0:00:32]} Rc3 {[%emt 0:00:54]} 50. Kg2 {[%emt 0:00:47]} Rb3 {[%emt 0:00:23]} 51. Kf3 {[%emt 0:00:46]} d2+ {[%emt 0:00:29]} 52. Ke2 {[%emt 0:00:21]} Bg5 {[%emt 0:00:21]} 53. h4 {[%emt 0:00:33]} Bf4 {[%emt 0:00:26]} 54. Nd4 {[%emt 0:00:53]} Re3+ {[%emt 0:00:31]} 55. Kxd2 {[%emt 0:00:35]} Re7+ 56. Kd3 Rxd7 {[%emt 0:00:42]} 57. Ke4 {[%emt 0:00:41]} Bc7 {[%emt 0:00:28]} 58. Ne6 {[%emt 0:00:24]} Bb6 {[%emt 0:00:25]} 59. Ke5 {[%emt 0:00:24]} Kg8 {[%emt 0:00:23]} 60. h5 {[%emt 0:00:27]} Rd1 {[%emt 0:00:26]} 61. Kf6 {[%emt 0:00:25]} Rd5 {[%emt 0:00:26]} 0-1